bitfinex/quotes_ETHUSD_20260226
["timestamp","ask_amount","ask_price","bid_price","bid_amount"]
[1772085510343,0.5,2069.0,2068.6,2.39864348]
[1772085510645,0.5,2069.0,2068.6,2.39864379]
[1772085511364,0.5,2069.0,2068.6,2.3986441]
[1772085511662,0.5,2069.0,2068.6,1.1921]
[1772085512035,0.5,2069.0,2068.6,2.40064589]
[1772085512542,0.501,2069.2,2068.6,2.40064589]
[1772085514541,0.5,2069.1,2068.7,1.192]
[1772085515771,0.5,2069.1,2068.6,0.0011]
[1772085515974,0.5,2069.1,2068.7,1.192]
[1772085517476,0.5,2069.1,2068.7,2.40048735]
[1772085518555,0.5,2069.1,2068.7,1.192]
[1772085518967,0.5,2069.1,2068.7,2.40048716]
[1772085519271,0.5,2069.1,2068.7,1.192]
[1772085519878,0.5,2069.1,2068.8,0.0011]
[1772085520077,0.001,2069.0,2068.8,0.0011]
[1772085520375,0.5,2068.9,2068.8,0.0011]
[1772085521998,0.5,2068.9,2068.6,0.0011]
[1772085522280,0.5,2068.9,2068.6,1.1931]
[1772085524988,0.5,2068.9,2068.6,2.40164429]
[1772085526197,0.5,2068.9,2068.6,0.0011]
[1772085526404,0.5,2068.9,2068.6,1.1921]
[1772085527687,0.5,2068.9,2068.6,2.40064318]
[1772085529774,0.5,2068.9,2068.6,1.1921]
[1772085531895,0.5,2068.9,2068.8,0.0011]
[1772085534224,0.001,2069.0,2068.8,0.49489733]
[1772085534576,0.001,2069.0,2068.8,0.0011]
[1772085534779,0.48970411,2069.0,2068.8,0.0011]
[1772085536591,0.47632195,2068.9,2068.6,0.0011]
[1772085537104,0.47632195,2068.9,2068.6,0.47253144]
[1772085539701,0.47632195,2068.8,2068.6,0.0011]
[1772085539889,0.47632195,2068.8,2068.6,1.1981]
[1772085541404,0.47632195,2068.7,2068.4,0.0011]
[1772085543607,0.47632195,2068.7,2068.6,0.0011]
[1772085543983,0.47732195,2068.7,2068.6,0.0011]
[1772085545097,0.001,2068.7,2068.6,0.0011]
[1772085545302,0.47732195,2068.7,2068.6,0.0011]
[1772085546215,0.001,2069.0,2068.7,0.47143144]
[1772085546514,0.47732195,2069.0,2068.7,0.47143144]
[1772085549600,0.47632195,2068.9,2068.6,0.47253144]
[1772085549798,0.47632195,2068.9,2068.6,1.1991]
[1772085551194,0.47632195,2068.9,2068.6,1.67053144]
[1772085553216,0.47632195,2068.9,2068.6,1.1991]
[1772085554585,0.47632195,2068.9,2068.6,1.67053144]
[1772085555512,0.47732195,2069.0,2068.6,1.67053144]
[1772085555716,0.001,2068.7,2068.6,1.67053144]
[1772085556013,0.47732195,2069.0,2068.6,1.67053144]
[1772085556585,0.47732195,2069.0,2068.7,0.47143144]
[1772085556780,0.001,2069.0,2068.7,0.47143144]
[1772085557702,0.001,2069.0,2068.8,0.47143144]
[1772085558986,0.47732195,2069.0,2068.7,1.20848841]
[1772085559187,0.47732195,2069.0,2068.7,1.67991985]
[1772085560591,0.47732195,2069.0,2068.7,0.47143144]
[1772085561512,0.47732195,2069.0,2068.7,1.67991427]
[1772085562396,0.47732195,2069.0,2068.7,0.47143144]
[1772085563613,0.47732195,2069.0,2068.7,1.67991569]
[1772085567991,0.47732195,2069.0,2068.7,0.47143144]
[1772085568386,0.47732195,2069.0,2068.7,1.67991621]
[1772085568891,0.47732195,2069.0,2068.9,0.0011]
[1772085580621,0.001,2069.0,2068.9,0.0011]
[1772085581900,0.001,2069.0,2068.9,1.70711135]
[1772085582999,0.001,2069.0,2068.9,1.2171]
[1772085583516,0.45625741,2069.0,2068.9,1.2171]
[1772085585924,0.001,2069.0,2068.9,1.2171]
[1772085589538,0.45625741,2069.0,2068.7,1.222]
[1772085591941,0.001,2069.2,2068.8,0.49001135]
[1772085592127,0.001,2069.2,2069.0,0.49001135]
[1772085596311,0.49255079,2069.5,2069.1,0.45882086]
[1772085596716,0.49255079,2069.4,2069.0,2.43431258]
[1772085597340,0.49255079,2069.4,2069.0,1.226]
[1772085597647,0.49255079,2069.4,2069.0,2.89313231]
[1772085598150,0.49255079,2069.4,2069.0,1.68482086]
[1772085599351,0.49255079,2069.4,2069.0,0.45882086]
[1772085599665,0.49255079,2069.3,2068.9,0.001]
[1772085600525,0.49255079,2069.3,2068.9,1.66818926]
[1772085601645,0.49255079,2069.3,2068.9,1.2093684]
[1772085601852,0.49255079,2069.3,2068.9,1.66818926]
[1772085602154,0.49255079,2069.3,2069.0,1.229]
[1772085602327,0.49255079,2069.3,2068.9,1.66818926]
[1772085602328,0.49255079,2069.2,2068.9,0.001]
[1772085602525,0.49255079,2069.2,2068.9,1.23]
[1772085602946,0.49255079,2068.9,2068.6,0.0011]
[1772085603147,0.49255079,2069.2,2068.7,0.45882086]
[1772085603663,0.49255079,2069.2,2068.6,1.2096382]
[1772085603664,0.49255079,2069.1,2068.6,1.66845906]
[1772085604543,0.49255079,2069.1,2068.6,0.45992086]
[1772085604750,0.49255079,2069.0,2068.6,1.2301]
[1772085605175,0.49455079,2069.0,2068.6,1.2301]
[1772085605373,0.49455079,2069.0,2068.9,0.001]
[1772085605675,0.49255079,2068.8,2068.6,1.2301]
[1772085608674,0.49455079,2069.0,2068.6,1.2301]
[1772085608885,0.49455079,2069.0,2068.6,1.68892086]
[1772085609371,0.49255079,2068.9,2068.6,1.68892086]
[1772085609555,0.49255079,2068.9,2068.6,1.2301]
[1772085613894,0.49255079,2068.9,2068.6,1.68892086]
[1772085614085,0.49255079,2068.9,2068.6,1.2301]
[1772085615384,0.49255079,2068.8,2068.4,1.2331]
[1772085616994,0.49255079,2068.5,2068.1,0.0011]
[1772085617283,0.49255079,2068.4,2068.1,0.0011]
[1772085618082,0.49255079,2068.7,2068.1,0.45992086]
[1772085619984,0.49255079,2068.5,2068.1,0.0011]
[1772085620287,0.49255079,2068.3,2067.9,0.0011]
[1772085622080,0.49255079,2068.2,2067.9,0.0011]
[1772085623068,0.49255079,2068.1,2067.2,1.69082086]
[1772085623273,0.49255079,2068.1,2067.3,0.45882086]
[1772085625205,0.49255079,2067.9,2067.2,1.231]
[1772085625491,0.49255079,2067.9,2067.2,1.68982086]
[1772085626155,0.49255079,2067.9,2067.3,0.48069992]
[1772085627170,0.4941374,2068.3,2067.6,0.48069992]
[1772085627372,0.4941374,2068.6,2068.0,0.48069992]
[1772085628670,0.4941374,2068.9,2068.2,0.48069992]
[1772085629014,0.4941374,2068.9,2068.4,0.48069992]
[1772085629192,0.4941374,2068.9,2068.5,1.68930518]
[1772085629717,0.4941374,2068.9,2068.5,0.48069992]
[1772085631032,0.4941374,2068.8,2068.2,1.23]
[1772085631185,0.4941374,2068.7,2068.2,2.43877236]
[1772085635300,0.4941374,2068.7,2068.3,0.45274208]
[1772085635498,0.4941374,2068.7,2068.2,2.43877236]
[1772085635694,0.4941374,2068.7,2068.2,2.89151444]
[1772085635919,0.4941374,2068.7,2068.4,1.2086637]
[1772085636108,0.4941374,2068.7,2068.3,0.45274208]
[1772085636109,0.4941374,2068.7,2068.3,1.6614302]
[1772085636727,1.66473346,2068.9,2068.4,0.45274208]
[1772085636914,0.45635422,2068.9,2068.4,0.45274208]
[1772085638040,0.45635422,2068.8,2068.2,1.66149012]
[1772085638209,0.45635422,2068.8,2068.3,1.233]
[1772085638410,0.45635422,2068.8,2068.3,1.68574208]
[1772085638611,0.45635422,2068.8,2068.4,0.45274208]
[1772085640262,0.45635422,2068.8,2068.4,1.66139994]
[1772085640441,0.002,2069.0,2068.7,0.45274208]
[1772085641406,0.45835422,2069.0,2068.5,0.45274208]
[1772085643941,0.45835422,2069.0,2068.4,1.50350881]
[1772085643942,0.45835422,2069.0,2068.6,1.66128892]
[1772085645751,0.45835422,2069.0,2068.6,0.45274208]
[1772085650633,0.45635422,2068.9,2068.6,0.45274208]
[1772085651668,0.45635422,2068.9,2068.5,1.20860049]
[1772085651966,0.45635422,2068.9,2068.5,1.66134257]
[1772085652175,0.45635422,2068.9,2068.6,0.45274208]
[1772085653068,0.45635422,2068.9,2068.5,1.20860049]
[1772085653268,0.45635422,2068.9,2068.5,1.66134257]
[1772085654545,0.45635422,2068.9,2068.8,0.0011]
[1772085655771,0.45635422,2068.8,2068.5,0.0011]
[1772085656338,0.29485095,2068.7,2068.3,1.2411]
[1772085656572,0.46414422,2068.6,2068.3,0.0011]
[1772085657937,0.46414422,2068.6,2068.1,1.20991969]
[1772085658173,0.46414422,2068.1,2067.4,0.0011]
[1772085658466,0.46414422,2067.9,2067.4,0.0011]
[1772085659481,0.46414422,2067.8,2067.4,0.0011]
[1772085660507,0.46414422,2067.7,2067.4,0.0011]
[1772085660655,0.46414422,2067.5,2067.1,0.0011]
[1772085663284,0.46414422,2067.1,2066.9,0.0011]
[1772085663883,0.46414422,2067.0,2066.9,0.0011]
[1772085664051,0.46414422,2067.0,2066.6,0.0011]
[1772085664256,0.46414422,2066.8,2066.6,0.0011]
[1772085665384,1.47728665,2066.7,2065.8,0.45740369]
[1772085665690,0.46414422,2066.6,2066.0,0.45740369]
[1772085665892,0.46414422,2066.5,2066.0,0.45740369]
[1772085666460,0.46414422,2066.5,2065.8,1.66755193]
[1772085666681,0.46414422,2066.5,2065.6,0.45740369]
[1772085666867,0.46414422,2066.5,2065.7,1.239]
[1772085667877,0.46414422,2066.3,2065.7,1.239]
[1772085668372,0.46414422,2066.3,2065.7,2.44924294]
[1772085668881,0.46414422,2066.3,2065.7,2.90664663]
[1772085669087,0.46414422,2066.3,2065.8,0.45740369]
[1772085669456,0.46414422,2066.3,2065.7,2.44924294]
[1772085670065,0.46414422,2065.9,2065.0,1.21065169]
[1772085670288,0.46414422,2065.9,2065.0,1.66805538]
[1772085670486,0.46414422,2065.8,2065.0,1.239]
[1772085670783,0.46414422,2065.8,2065.0,1.69640369]
[1772085670971,0.46414422,2065.8,2065.1,0.45740369]
[1772085671975,0.46414422,2065.8,2065.0,1.239]
[1772085672174,0.46414422,2065.7,2064.7,0.45740369]
[1772085672378,0.46414422,2065.7,2064.9,1.239]
[1772085672555,0.46414422,2065.5,2064.7,1.24]
[1772085674057,0.46414422,2065.3,2064.7,1.24]
[1772085675763,0.46414422,2065.3,2064.3,1.21102253]
[1772085675980,0.46414422,2065.3,2064.3,2.44902253]
[1772085676280,0.46414422,2065.1,2064.3,1.238]
[1772085676481,0.46414422,2064.8,2063.9,1.66870061]
[1772085676663,0.46414422,2064.8,2064.1,1.69640369]
[1772085676864,0.46414422,2064.8,2064.2,0.45740369]
[1772085677076,0.46414422,2065.1,2064.2,0.45740369]
[1772085678263,0.46414422,2065.1,2064.4,0.45740369]
[1772085679300,1.674743,2065.1,2064.4,0.45740369]
[1772085679484,0.46414422,2065.1,2064.4,0.45740369]
[1772085680369,0.46414422,2065.1,2064.5,1.66835065]
[1772085680572,0.46414422,2065.1,2064.6,1.238]
[1772085681096,0.46414422,2065.3,2064.7,0.45740369]
[1772085681272,1.67454526,2065.5,2064.7,0.45740369]
[1772085681682,0.46414422,2065.5,2064.7,0.45740369]
[1772085682203,1.67441609,2065.7,2064.8,0.45740369]
[1772085682411,1.67446536,2065.6,2064.9,1.21071238]
[1772085682717,0.46414422,2065.6,2065.0,0.45740369]
[1772085683314,0.46414422,2065.6,2065.1,1.69540369]
[1772085683621,1.67437088,2065.8,2065.1,1.69540369]
[1772085683784,0.46414422,2065.8,2065.1,1.238]
[1772085684619,0.46414422,2065.7,2065.1,2.44854629]
[1772085686685,1.67440449,2065.7,2065.1,2.90242267]
[1772085686918,1.21026027,2065.7,2065.1,2.90242267]
[1772085687105,0.46657875,2065.6,2065.1,2.90247014]
[1772085687508,0.46657875,2065.6,2064.6,1.66471991]
[1772085687697,0.46657875,2065.6,2064.7,0.45387638]
[1772085688796,1.67693943,2065.5,2064.8,0.45387638]
[1772085689118,0.46657875,2065.5,2064.8,0.45387638]
[1772085690515,0.46657875,2065.7,2064.8,0.45387638]
[1772085691229,1.67688084,2065.6,2065.0,0.45387638]
[1772085692214,0.46657875,2065.5,2065.0,0.45387638]
[1772085693020,1.67673661,2065.9,2065.0,0.45387638]
[1772085693225,1.67673661,2065.9,2065.2,0.45387638]
[1772085693532,1.21007372,2066.0,2065.3,0.47241163]
[1772085693823,0.47395659,2066.1,2065.3,0.47241163]
[1772085694028,1.68397547,2066.1,2065.3,0.47241163]
[1772085694325,0.47395659,2066.0,2065.3,0.47241163]
[1772085695703,1.68403067,2066.0,2065.4,1.68283091]
[1772085695929,1.68403067,2066.0,2065.5,0.47241163]
[1772085696134,0.47395659,2066.5,2065.5,0.47241163]
[1772085696665,0.47395659,2066.5,2065.7,0.47241163]
[1772085698166,0.47395659,2066.5,2065.8,1.21018491]
[1772085698167,1.20983352,2066.4,2065.8,1.21018491]
[1772085698355,1.20983352,2066.4,2065.9,0.47241163]
[1772085699956,0.47395659,2066.7,2065.9,0.47241163]
[1772085700156,1.68362005,2066.7,2065.9,0.47241163]
[1772085700881,1.68354332,2066.9,2066.1,0.47241163]
[1772085701054,0.47395659,2066.8,2066.2,0.47241163]
[1772085702857,0.47395659,2066.6,2065.9,1.236]
[1772085704151,0.47395659,2066.6,2065.9,1.70841163]
[1772085704886,2.06873849,2066.0,2064.3,0.47241163]
[1772085705062,2.06873849,2066.4,2064.4,0.47351163]
[1772085705063,0.47395659,2065.6,2064.4,0.47351163]
[1772085705262,0.47395659,2065.6,2064.1,2.57011375]
[1772085705263,0.47395659,2065.3,2064.2,0.47241163]
[1772085705559,0.47395659,2065.3,2064.9,0.0011]
[1772085705760,0.47395659,2065.3,2064.2,0.47241163]
[1772085706185,0.47395659,2065.3,2064.6,0.0011]
[1772085706983,0.47395659,2065.1,2064.6,0.0011]
[1772085707277,0.47395659,2065.1,2064.4,0.0011]
[1772085708696,0.47395659,2065.1,2064.4,0.47351163]
[1772085708865,1.68461034,2065.0,2064.4,0.47351163]
[1772085709779,0.47395659,2064.9,2064.4,0.0011]
[1772085710984,1.6847276,2064.8,2064.4,0.0011]
[1772085711287,0.47395659,2064.7,2064.4,0.0011]
[1772085713088,1.68482131,2064.7,2064.4,0.0011]
[1772085713882,0.47395659,2064.7,2064.4,0.0011]
[1772085714064,4.84294422,2064.9,2064.4,0.0011]
[1772085714065,0.47395659,2064.9,2064.4,0.0011]
[1772085715183,1.6847276,2064.8,2064.4,0.0011]
[1772085717666,1.6847276,2064.8,2064.6,0.0011]
[1772085717868,0.47445724,2064.7,2064.4,0.0011]
[1772085720287,1.2108883,2064.6,2064.4,0.0011]
[1772085720696,1.68534554,2064.6,2064.4,0.0011]
[1772085720990,0.001,2064.9,2064.4,0.47230641]
[1772085721871,1.21171238,2064.9,2064.4,0.47230641]
[1772085722076,0.47445724,2064.8,2064.4,0.0011]
[1772085722796,1.21082966,2064.7,2064.4,0.0011]
[1772085723114,1.68526693,2064.8,2064.4,0.0011]
[1772085723927,0.001,2064.9,2064.4,0.47230641]
[1772085724703,0.001,2064.9,2064.5,1.21094696]
[1772085724870,0.001,2064.9,2064.5,1.68215337]
[1772085725299,0.47445724,2065.3,2064.6,0.47120641]
[1772085725600,1.68484542,2065.5,2064.8,0.47120641]
[1772085725800,0.47445724,2065.4,2064.8,0.47120641]
[1772085726907,1.68470074,2065.7,2064.9,0.47120641]
[1772085728705,0.47445724,2065.6,2064.9,0.47120641]
[1772085729987,1.68480288,2065.6,2065.0,0.47120641]
[1772085730188,0.001,2065.2,2065.0,0.47120641]
[1772085732080,0.001,2065.2,2065.0,1.68183755]
[1772085732694,0.001,2065.2,2064.8,1.68197661]
[1772085732892,0.001,2065.2,2064.9,1.23]
[1772085733712,0.001,2065.2,2064.9,1.70120641]
[1772085734521,1.2102274,2065.8,2065.0,0.47120641]
[1772085735000,1.68468464,2065.8,2065.0,0.47120641]
[1772085735383,0.47445724,2065.7,2065.0,0.47120641]
[1772085735609,0.47445724,2065.7,2065.1,1.231]
[1772085736510,0.47445724,2065.5,2064.8,1.68195184]
[1772085736814,0.47445724,2065.5,2065.1,1.231]
[1772085737185,0.47445724,2065.5,2064.8,0.47120641]
[1772085737386,0.47445724,2065.4,2064.8,1.23]
[1772085737609,0.47445724,2065.4,2064.8,1.70120641]
[1772085739415,0.47445724,2065.3,2064.6,1.68318182]
[1772085739715,0.47445724,2065.3,2064.6,0.0011]
[1772085741413,0.47445724,2065.1,2064.6,0.0011]
[1772085742312,2.5454412,2065.1,2065.0,0.0011]
[1772085742612,0.47445724,2065.0,2064.6,0.0011]
[1772085742783,0.47445724,2065.0,2064.8,0.0011]
[1772085743687,1.68511115,2065.0,2064.8,0.0011]
[1772085743986,1.21062407,2065.1,2064.8,0.0011]
[1772085744210,1.68508131,2065.1,2064.8,0.0011]
[1772085744405,0.47445724,2065.0,2064.8,0.0011]
[1772085745202,0.47545724,2065.2,2064.8,0.0011]
[1772085746101,0.47545724,2065.2,2064.8,1.2281]
[1772085746420,0.001,2065.2,2064.9,0.49810437]
[1772085746795,0.48484193,2065.1,2064.8,1.2281]
[1772085747225,1.21155545,2065.2,2064.8,1.2281]
[1772085748018,0.001,2065.2,2064.8,1.2281]
[1772085748204,0.001,2065.2,2064.8,2.9369726]
[1772085748908,0.001,2065.2,2064.8,1.72620437]
[1772085749922,0.48584193,2065.2,2064.8,1.2281]
[1772085751022,0.48484193,2065.1,2064.6,1.2301]
[1772085751993,0.48484193,2064.9,2064.6,1.2301]
[1772085752727,0.48484193,2065.1,2064.6,2.44098339]
[1772085753440,0.48484193,2065.1,2064.6,2.93908776]
[1772085753637,0.48484193,2065.1,2064.6,1.72820437]
[1772085754832,0.48484193,2065.1,2064.8,0.0011]
[1772085754833,0.47576991,2065.0,2064.8,0.0011]
[1772085756407,0.47576991,2065.0,2064.6,0.0011]
[1772085756702,1.68648229,2064.9,2064.6,0.0011]
[1772085757025,0.47576991,2064.9,2064.6,0.0011]
[1772085759815,4.84259247,2065.1,2064.6,0.48660224]
[1772085759816,1.21059512,2065.1,2064.6,0.48660224]
[1772085760215,1.21154224,2065.2,2064.6,0.48660224]
[1772085760422,0.47576991,2065.1,2064.6,0.48660224]
[1772085760615,0.47576991,2065.1,2064.6,0.0011]
[1772085762225,1.68642366,2065.0,2064.6,0.0011]
[1772085763457,0.47576991,2064.9,2064.6,0.0011]
[1772085766068,1.68652309,2064.9,2064.6,0.0011]
[1772085766473,1.68652309,2064.9,2064.8,0.0011]
[1772085766838,1.68752309,2064.9,2064.8,0.0011]
[1772085767040,0.001,2064.9,2064.8,0.0011]
[1772085767269,1.68748229,2064.9,2064.8,0.0011]
[1772085767448,0.47576991,2064.8,2064.6,0.0011]
[1772085767836,0.001,2064.9,2064.6,0.0011]
[1772085768142,0.001,2064.9,2064.6,0.48660224]
[1772085769069,0.001,2065.2,2064.6,0.0011]
[1772085769391,0.001,2065.2,2064.7,0.48550224]
[1772085769670,0.47576991,2065.1,2064.8,1.225]
[1772085770252,1.68637257,2065.1,2064.8,1.225]
[1772085770451,0.47576991,2065.0,2064.6,0.0011]
[1772085770644,0.47576991,2064.9,2064.6,0.0011]
[1772085772392,1.68653652,2064.9,2064.6,0.0011]
[1772085773703,1.21063882,2065.1,2064.6,0.48660224]
[1772085773885,0.47576991,2065.0,2064.6,0.0011]
[1772085774497,1.68645985,2065.0,2064.6,0.0011]
[1772085776203,1.68645985,2065.0,2064.6,0.46419409]
[1772085777330,0.29602248,2064.9,2064.6,0.46419409]
[1772085778037,1.21068994,2065.0,2064.6,0.0011]
[1772085778239,0.47038829,2065.3,2064.7,0.22396589]
[1772085778404,0.76641077,2065.2,2064.8,0.0011]
[1772085778604,1.97694921,2065.2,2064.8,0.0011]
[1772085779425,0.47038829,2064.9,2064.7,1.224]
[1772085781025,0.76641077,2064.8,2064.6,0.0011]
[1772085781235,0.76641077,2064.8,2064.5,1.2241]
[1772085781413,0.76641077,2064.6,2064.3,0.0011]
[1772085781597,0.76641077,2064.4,2064.1,0.0011]
[1772085782730,1.97747349,2064.4,2064.1,0.0011]
[1772085783342,0.47038829,2064.3,2064.1,0.0011]
[1772085784827,1.68145473,2064.3,2064.1,0.0011]
[1772085785028,0.47038829,2064.3,2064.1,0.0011]
[1772085785234,1.68133767,2064.5,2064.1,0.0011]
[1772085785834,0.47038829,2064.7,2064.1,0.22506589]
[1772085786138,1.68124543,2064.7,2064.1,0.22506589]
[1772085787514,1.68104204,2065.0,2064.2,0.22396589]
[1772085788241,0.47038829,2064.9,2064.2,0.22396589]
[1772085789038,0.47038829,2064.7,2064.1,0.22506589]
[1772085789334,0.47038829,2064.7,2064.2,1.221]
[1772085790135,0.47038829,2064.7,2064.3,0.0011]
[1772085790357,0.47138829,2064.5,2064.1,0.0011]
[1772085790935,0.001,2064.5,2064.1,0.22120444]
[1772085791135,1.68235504,2064.5,2064.0,1.2221]
[1772085793443,0.47138829,2064.5,2064.0,1.2221]
[1772085793644,0.001,2064.5,2064.1,0.22120444]
[1772085795768,0.001,2064.5,2064.1,1.43237603]
[1772085795970,0.001,2064.5,2064.1,0.22120444]
[1772085796866,0.001,2064.5,2064.1,1.44320444]
[1772085798168,0.001,2064.5,2064.1,1.44420444]
[1772085798556,0.47138829,2064.5,2064.1,1.223]
[1772085800468,0.47038829,2064.4,2064.1,1.223]
[1772085802481,1.68143936,2064.4,2064.1,1.223]
[1772085802981,0.001,2064.3,2064.1,1.223]
[1772085803142,0.001,2064.3,2064.0,0.0011]
[1772085803143,0.47038829,2064.2,2064.0,0.0011]
[1772085803342,0.001,2064.3,2064.0,0.0011]
[1772085804741,0.47138829,2064.3,2064.0,0.0011]
[1772085806467,0.47138829,2064.3,2063.8,0.0011]
[1772085806779,0.48590462,2064.1,2063.4,1.44530444]
[1772085807479,0.48590462,2064.1,2063.4,1.222]
[1772085808169,0.48590462,2063.8,2063.1,0.22230444]
[1772085808571,2.69196788,2064.2,2063.1,0.22230444]
[1772085808572,0.48590462,2064.1,2063.1,0.22230444]
[1772085809077,0.48590462,2064.0,2063.3,0.22230444]
[1772085813386,0.48590462,2064.0,2063.5,0.22230444]
[1772085813557,0.48590462,2064.0,2063.5,1.44330444]
[1772085813952,1.50738336,2064.2,2063.6,0.22230444]
[1772085814158,0.001,2064.3,2063.9,0.22230444]
[1772085815055,0.001,2064.3,2064.0,1.222]
[1772085815963,0.001,2064.3,2064.0,1.44430444]
[1772085816468,0.001,2064.5,2064.2,0.22130444]
[1772085816972,0.001,2064.5,2064.0,2.65452182]
[1772085817282,0.001,2064.5,2064.1,0.22130444]
[1772085817489,0.001,2064.5,2064.3,0.22130444]
[1772085819687,0.001,2064.5,2064.4,1.21100561]
[1772085819986,0.001,2064.5,2064.0,7.54694513]
[1772085819987,0.4990583,2065.0,2064.5,0.22130444]
[1772085820186,0.4990583,2065.0,2064.5,1.44730444]
[1772085822875,0.4990583,2065.0,2064.5,2.65820982]
[1772085823113,0.4990583,2064.9,2064.5,1.226]
[1772085823795,0.4990583,2064.9,2063.9,0.22130444]
[1772085824091,0.4990583,2064.9,2064.3,1.226]
[1772085824322,0.4990583,2064.9,2063.9,0.22130444]
[1772085824466,0.4990583,2064.8,2064.0,1.204]
[1772085825087,0.4990583,2064.6,2064.0,1.204]
[1772085826573,0.4990583,2064.6,2063.8,1.224]
[1772085827163,0.4990583,2064.4,2063.8,1.224]
[1772085827359,0.4990583,2064.4,2063.8,1.44530444]
[1772085828584,0.4990583,2064.4,2063.6,0.22130444]
[1772085831018,0.4990583,2064.2,2063.7,1.21141638]
[1772085831911,0.4990583,2064.2,2063.6,1.43273487]
[1772085832501,0.4990583,2064.2,2063.5,2.43658931]
[1772085832706,0.4990583,2064.2,2063.5,2.65789375]
[1772085832901,0.4990583,2064.2,2063.6,0.22130444]
[1772085835019,0.4990583,2064.4,2063.8,0.22130444]
[1772085835486,0.4990583,2064.4,2063.7,1.21141638]
[1772085835914,0.4990583,2064.4,2063.8,0.22130444]
[1772085836307,0.4722266,2063.9,2063.5,0.0011]
[1772085836889,0.4722266,2063.9,2063.5,1.2251]
[1772085837313,0.4722266,2063.9,2063.5,2.43663094]
[1772085837619,0.4722266,2063.9,2063.5,1.2251]
[1772085838026,0.4722266,2063.9,2063.5,2.43663284]
[1772085838695,0.4722266,2063.9,2063.5,1.2251]
[1772085838904,0.4722266,2063.9,2063.5,2.43663325]
[1772085839224,0.4722266,2063.9,2063.5,1.2251]
[1772085839520,0.4722266,2063.9,2063.5,2.43662613]
[1772085839911,0.4722266,2063.9,2063.6,0.0011]
[1772085841203,0.4722266,2064.1,2063.6,0.0011]
[1772085842605,0.4722266,2064.1,2063.6,0.22240444]
[1772085844833,0.4722266,2064.1,2063.7,1.21141638]
[1772085845002,1.21104016,2064.4,2063.8,0.22130444]
[1772085845328,0.4732266,2064.7,2064.1,0.22130444]
[1772085845703,0.4732266,2064.7,2064.4,0.44422067]
[1772085845704,0.001,2064.7,2064.4,0.44422067]
[1772085845929,0.001,2064.7,2063.7,1.21141638]
[1772085845930,0.4732266,2064.7,2064.5,1.23]
[1772085847928,0.001,2064.7,2064.5,1.23]
[1772085848301,0.001,2064.7,2064.5,2.44094359]
[1772085848726,0.001,2064.7,2064.5,1.23]
[1772085848927,0.4732266,2064.7,2064.5,1.23]
[1772085851722,0.001,2064.7,2064.5,2.44094338]
[1772085851921,0.001,2064.7,2064.5,1.23]
[1772085852635,0.4732266,2064.7,2064.5,1.23]
[1772085853133,0.4732266,2064.7,2064.5,2.44094586]
[1772085853431,0.4722266,2065.4,2064.6,0.22130444]
[1772085853933,1.21030209,2065.6,2064.6,0.22130444]
[1772085853934,0.4722266,2065.2,2064.6,1.43215756]
[1772085854136,0.4722266,2065.4,2064.9,0.45044867]
[1772085854359,0.4722266,2065.8,2065.1,0.45044867]
[1772085854512,0.4722266,2065.8,2065.2,1.232]
[1772085854513,0.4722266,2065.7,2065.2,1.232]
[1772085855036,0.4722266,2065.7,2065.2,1.68244867]
[1772085855330,0.4722266,2065.7,2065.3,0.45044867]
[1772085855838,0.4722266,2066.2,2065.4,0.45044867]
[1772085856020,0.4722266,2066.2,2065.2,2.89294637]
[1772085856216,0.4722266,2066.2,2065.3,0.45044867]
[1772085857832,0.4722266,2066.0,2065.3,1.66092094]
[1772085858236,0.4722266,2066.0,2065.2,1.232]
[1772085858532,0.4722266,2066.0,2065.2,2.44253424]
[1772085858720,0.4722266,2066.0,2065.2,1.232]
[1772085859230,0.4722266,2066.0,2065.2,1.68244867]
[1772085860035,0.4722266,2065.8,2065.2,1.68244867]
[1772085860417,0.4722266,2065.8,2065.2,0.45044867]
[1772085860622,0.4722266,2065.8,2064.8,1.23444867]
[1772085860824,0.4722266,2065.7,2064.8,0.784]
[1772085862233,0.4722266,2065.5,2064.9,1.66116105]
[1772085862611,0.4722266,2065.5,2064.9,0.45044867]
[1772085863439,0.4722266,2065.5,2065.0,0.0011]
[1772085865821,1.70050875,2065.4,2065.0,0.49428386]
[1772085866421,0.49008947,2065.6,2065.0,0.49428386]
[1772085871754,0.49008947,2065.4,2065.0,0.49428386]
[1772085872750,0.49008947,2065.4,2065.0,0.0011]
[1772085875552,0.49008947,2065.4,2065.0,0.47312281]
[1772085875952,1.70978375,2065.8,2065.2,0.47312281]
[1772085876626,1.21119259,2065.8,2065.4,0.47202281]
[1772085877150,1.70978375,2065.8,2065.4,0.47202281]
[1772085881856,0.49859116,2065.7,2065.4,0.47202281]
[1772085883056,0.001,2065.8,2065.5,0.47202281]
[1772085884541,0.001,2065.8,2065.6,0.47202281]
[1772085884945,0.49859116,2065.7,2065.2,0.0011]
[1772085885257,0.49859116,2065.6,2065.0,1.2241]
[1772085885437,0.49859116,2065.3,2064.8,0.0011]
[1772085886760,0.49859116,2065.6,2064.8,0.47312281]
[1772085888163,0.49859116,2065.6,2065.2,0.0011]
[1772085888364,0.49959116,2065.6,2065.2,0.0011]
[1772085889054,1.70895184,2065.5,2065.2,0.0011]
[1772085889366,0.49859116,2065.4,2065.2,0.0011]
[1772085892264,1.7090567,2065.4,2065.2,0.0011]
[1772085894471,1.21046554,2065.4,2065.2,0.0011]
[1772085895670,1.7090567,2065.4,2065.2,0.0011]
[1772085898272,0.47453986,2065.3,2065.0,0.0011]
[1772085900294,1.68503619,2065.3,2065.2,0.0011]
[1772085900581,0.001,2065.6,2065.2,0.46186359]
[1772085900582,0.001,2065.4,2065.2,0.46186359]
[1772085900745,0.001,2065.6,2065.3,0.46076359]
[1772085901768,0.001,2065.8,2065.3,0.46076359]
[1772085901974,1.21119446,2065.8,2065.3,0.46076359]
[1772085902350,0.47753986,2065.8,2065.3,0.46076359]
[1772085902551,0.47453986,2065.6,2065.2,0.0011]
[1772085905279,0.002,2065.6,2065.2,0.46186359]
[1772085906272,0.001,2065.8,2065.3,0.46076359]
[1772085907391,0.001,2066.4,2065.5,0.46076359]
[1772085907392,0.47553986,2066.4,2065.5,0.46076359]
[1772085907592,0.47553986,2066.4,2065.7,0.46076359]
[1772085909257,1.20989207,2066.3,2065.7,0.46076359]
[1772085909460,0.47453986,2066.2,2065.7,0.46076359]